Cogmind - Beta 9.6 @@@ ROGUE MODE // 2020.06.07 @ 14:20:51 Player: Faeren Result: Destroyed by G-47 Trooper with Particle Gun Performance ------------- Evolutions (2) 1000 Regions Visited (3) 600 Robots Destroyed (51) 255 Value Destroyed (1481) 1481 Prototype IDs (3) 60 Alien Tech Used (0) 0 Bonus (141) 141 TOTAL SCORE: 3537 Bonus ------- High Alert Combat Kills 141 Cogmind --------- Core Integrity 0/550 Matter 271/300 Energy 155/160 System Corruption 0% Temperature Cool (293) Movement Walking (120) Location -8/Materials Parts ------- > --- POWER (1) -------- Light Nuclear Core > --- PROPULSION (4) --- Aluminum Leg Carbon-fiber Leg Improved VTOL Module > --- UTILITY (4) ------ Visual Processing Unit Transport Network Coupler Improved Targeting Computer > --- WEAPON (2) ------- Heavy Particle Cannon Heavy Assault Rifle > --- INVENTORY (4) ---- Light Nuclear Core Transmission Jammer Heavy Particle Cannon Peak State ------------ > --- POWER ------------ Light Nuclear Core > --- PROPULSION ------- Aluminum Leg Carbon-fiber Leg Improved VTOL Module > --- UTILITY ---------- Visual Processing Unit Transport Network Coupler Improved Targeting Computer Light Armor Plating > --- WEAPON ----------- Heavy Particle Cannon Heavy Assault Rifle > --- INVENTORY -------- Light Nuclear Core Transmission Jammer Heavy Particle Cannon [Rating: 22] Favorites ----------- Power Light Ion Engine Engine Light Ion Engine Power Core Light Nuclear Core Propulsion Aluminum Leg Treads Advanced Treads Leg Aluminum Leg Wheel Wheel Flight Unit Flight Unit Utility Visual Processing Unit Device ECM Suite Storage Small Storage Unit Processor Visual Processing Unit Protection Light Armor Plating Weapon Mini Grenade Launcher Energy Gun Small Laser Energy Cannon Beam Cannon Ballistic Gun Assault Rifle Launcher Mini Grenade Launcher Build | -11 -10 -9 -8 ------- Run | Scr Mat Mat Mat Slots Evolved 4 | . . 2 2 Power . | . . . . Propulsion 2 | . . 1 1 Utility 2 | . . 1 1 Weapon . | . . . . Parts Attached 43 | 6 11 10 16 Power 4 | 1 1 . 2 Engine 3 | 1 1 . 1 Core 1 | . . . 1 Reactor . | . . . . Propulsion 14 | 2 2 5 5 Treads 1 | . . . 1 Leg 8 | 2 . 3 3 Wheel 2 | . . 2 . Hover . | . . . . Flight 3 | . 2 . 1 Utility 7 | 1 2 2 2 Device 2 | . 1 1 . Storage 1 | 1 . . . Processor 3 | . 1 1 1 Hackware . | . . . . Protection 1 | . . . 1 Artifact . | . . . . Weapon 18 | 2 6 3 7 Energy Gun 4 | . 3 . 1 Energy Cannon 3 | . 2 . 1 Ballistic Gun 4 | 2 1 . 1 Ballistic Cannon . | . . . . Launcher 7 | . . 3 4 Special Weapon . | . . . . Impact Weapon . | . . . . Slashing Weapon . | . . . . Piercing Weapon . | . . . . Special Melee Weapon . | . . . . Unidentified Prototypes 3 | . . . 3 Parts Lost 23 | . 3 7 13 Power 2 | . . 1 1 Propulsion 9 | . 1 3 5 Utility 3 | . . 1 2 Weapon 9 | . 2 2 5 Highest Loss Streak 10 | . 3 7 10 Average Slot Usage (%) 76 | . 82 81 71 Engine 6 | . 14 2 3 Core 1 | . . . 3 Treads 1 | . . . 2 Leg 16 | . 10 16 18 Flight 7 | . 15 6 3 Device 6 | . 7 9 4 Storage 1 | . 6 . . Processor 15 | . 3 22 18 Protection 1 | . . . 2 Energy Gun 2 | . 6 3 . Energy Cannon 1 | . 1 2 . Ballistic Gun 5 | . 14 . 2 Launcher 7 | . . 14 9 Naked Turns . | . . . . Heaviest Build 17 | 13 13 8 17 Greatest Support 47 | 20 20 30 47 Greatest Overweight (x) 4 | . 3 . 4 Average Overweight (x) . | . . . . Largest Inventory Capacity 6 | 6 6 4 4 Average Capacity 4 | 4 4 4 4 Most Carried 4 | 4 4 4 4 Average Carried 1 | 1 2 2 1 Final Capacity 6 | 6 4 4 4 Final Carried 4 | 1 4 1 3 Class Distribution -------------------- 65% | Scavenger-Mutant 34% | Mutant Dominant Class ---------------- Scavenger-Mutant | -10/Materials Scavenger-Mutant | -9/Materials Scavenger-Mutant | -8/Materials Resources | -11 -10 -9 -8 ----------- Run | Scr Mat Mat Mat Matter Collected 1140 | 227 277 205 431 Remotely . | . . . . Salvage Created 1439 | . 209 371 859 Parts 88 | . 15 25 48 Haulers Intercepted 3 | . . . 3 Recyclers Shooed 1 | . . . 1 Parts Field Recycled . | . . . . Retrieved Matter . | . . . . Parts Self-Destructed . | . . . . Prevented . | . . . . Kills | -11 -10 -9 -8 ------- Run | Scr Mat Mat Mat Combat Hostiles Destroyed 41 | . 7 13 21 Melee 1 | . 1 . . Guns 11 | . 6 2 3 Cannons 2 | . . 2 . AOE 26 | . . 9 17 Classes Destroyed 10 | . 3 4 3 Worker 2 | . . 1 1 Builder 2 | . . . 2 Hauler 3 | . . . 3 Recycler 1 | . . 1 . Operator 1 | . . 1 . Watcher 1 | . 1 . . Swarmer 12 | . 3 6 3 Grunt 23 | . 4 6 13 Brawler 1 | . . . 1 Sentry 5 | . . 1 4 Best Kill Streak 10 | . 3 10 5 Combat Bots Only 8 | . 3 8 5 Max Kills in Single Turn 5 | . 1 5 4 Gunslinging . | . . . . Exploded 5 | . . 5 4 Melee 1 | . 1 . . Uniques/NPCs Destroyed . | . . . . Combat | -11 -10 -9 -8 -------- Run | Scr Mat Mat Mat Damage Taken 3032 | . 674 571 1787 Core 990 | . 187 244 559 Absorbed by Shields . | . . . . Core Remaining (%) 54 | 100 25 39 . Volleys Fired 125 | . 61 22 42 Largest 2 | . 2 2 2 Hottest 100 | . 80 100 98 Shots Fired 202 | . 98 41 63 Gun 134 | . 98 16 20 Cannon 20 | . . 13 7 Launcher 48 | . . 12 36 Special . | . . . . Kinetic 85 | . 72 . 13 Thermal 62 | . 26 29 7 Explosive 44 | . . 12 32 Electromagnetic 11 | . . . 11 Robot Hit Streak 23 | . 23 16 18 Robot Miss Streak 6 | . 6 4 2 Penetration Max . | . . . . Secondary Targets 2 | . 2 . . Max Gunslinging Chain 1 | . 1 . . Shots Hit Robots 112 | . 50 26 36 Core Hits 83 | . 17 19 47 Critical Hits . | . . . . Critical Kills . | . . . . Critical Parts Destroyed . | . . . . Melee Attacks . | . . . . Impact . | . . . . Slashing . | . . . . Piercing . | . . . . Sneak Attacks . | . . . . Combat Hostiles . | . . . . Follow-up Attacks . | . . . . Damage Inflicted 4003 | . 582 1054 2367 Guns 984 | . 577 131 276 Cannons 272 | . . 122 150 Explosions 2727 | . . 801 1926 Melee . | . . . . Ramming 20 | . 5 . 15 Kinetic 662 | . 541 . 121 Thermal 485 | . 36 253 196 Explosive 2379 | . . 801 1578 Electromagnetic 457 | . . . 457 Impact . | . . . . Slashing . | . . . . Piercing . | . . . . Highest Corruption 2 | . 2 . . Average Corruption 2 | . 2 . . Corruption Purged . | . . . . Overload Shots . | . . . . Overflow Damage 146 | . . 29 117 Projectiles . | . . . . Explosions 146 | . . 29 117 Melee . | . . . . Knockbacks 1 | . . . 1 Impact 1 | . . . 1 Kinetic . | . . . . Secondary . | . . . . Self-Inflicted Damage 164 | . 2 35 127 Shots 5 | . . 1 4 Rammed 4 | . 2 . 2 Targets Rammed 7 | . 3 . 4 Kicked 3 | . 1 . 2 Crushed . | . . . . Highest Temperature 284 | . 20 100 284 Average Temperature 42 | . 4 44 81 Received Heat Transfer 1116 | . 324 81 711 Siege Activations . | . . . . Robots Corrupted 1 | . . . 1 Combat Hostiles 1 | . . . 1 Parts Fried 3 | . . . 3 Impact Corruptions . | . . . . Robots Melted . | . . . . Combat Hostiles . | . . . . Parts Melted 1 | . . 1 . Heat Transferred 906 | . 75 559 272 Parts Sabotaged . | . . . . Parts Stolen . | . . . . Parts Stripped . | . . . . Power Chain Reactions 1 | . . . 1 Missiles Intercepted . | . . . . Alert | -11 -10 -9 -8 ------- Run | Scr Mat Mat Mat Peak Influence 653 | . 211 377 653 Average Influence 267 | . 134 272 357 Maximum Alert Level 2 | . 1 1 2 Low Security (%) 43 | 100 66 35 29 Level 1 28 | . 33 64 14 Level 2 28 | . . . 56 Level 3 . | . . . . Level 4 . | . . . . Level 5 . | . . . . High Security . | . . . . Max Security . | . . . . Squads Dispatched 7 | . 1 2 4 Investigation 1 | . . 1 . Extermination . | . . . . Reinforcement 5 | . 1 1 3 Assault . | . . . . Garrison 1 | . . . 1 Intercept . | . . . . Construction Impeded 1 | . . . 1 Haulers Reinforced . | . . . . Stealth | -11 -10 -9 -8 --------- Run | Scr Mat Mat Mat Distress Signals 3 | . 2 . 1 Communications Jammed . | . . . . Distress Signals . | . . . . Times Spotted 62 | . 14 15 33 Peak Tracking Total 11 | . 8 11 7 Tactical Retreats 7 | . 1 1 5 Traps | -11 -10 -9 -8 ------- Run | Scr Mat Mat Mat Traps Triggered 1 | . 1 . . Indirectly . | . . . . Trap Hack Attempts . | . . . . Triggered . | . . . . Disarmed . | . . . . Reprogrammed . | . . . . Reused . | . . . . Traps Extracted . | . . . . Installed . | . . . . Triggered . | . . . . Machines | -11 -10 -9 -8 ---------- Run | Scr Mat Mat Mat Machines Disabled 8 | . 1 1 6 Max in Single Turn 1 | . 1 1 1 Machines Sabotaged . | . . . . Garrisons Compromised . | . . . . Overloaded Fab Kills . | . . . . Fab Network Shutdowns . | . . . . Hacking | -11 -10 -9 -8 --------- Run | Scr Mat Mat Mat Machines Accessed 9 | . 2 3 4 Terminals 5 | . 1 1 3 Fabricators . | . . . . Repair Stations 2 | . . 1 1 Recycling Units 1 | . 1 . . Scanalyzers 1 | . . 1 . Garrison Access . | . . . . Total Hacks 25 | . 6 8 11 Successful 17 | . 4 5 8 Failed 8 | . 2 3 3 Catastrophic 1 | . . . 1 Database Lockouts . | . . . . Manual . | . . . . Terminals 16 | . 4 4 8 Fabricators . | . . . . Repair Stations 5 | . . 2 3 Recycling Units 2 | . 2 . . Scanalyzers 2 | . . 2 . Garrison Access . | . . . . Terminal Hacks 10 | . 2 2 6 Robot Analysis 2 | . . 1 1 Alert Level 3 | . . 1 2 Unreport Threat 1 | . . . 1 Dispatch Records 2 | . 1 . 1 Transport Status 2 | . 1 . 1 Fabricator Hacks . | . . . . Repair Station Hacks 3 | . . 1 2 Scan Component 2 | . . 1 1 Repair 1 | . . . 1 Recycling Unit Hacks 2 | . 2 . . Report Inventory 1 | . 1 . . Retrieve Matter 1 | . 1 . . Scanalyzer 2 | . . 2 . Insert Component 1 | . . 1 . Analyze 1 | . . 1 . Garrison Access Hacks . | . . . . Unauthorized Hacks . | . . . . Terminals . | . . . . Fabricators . | . . . . Repair Stations . | . . . . Recycling Units . | . . . . Scanalyzers . | . . . . Garrison Access . | . . . . Data Cores Recovered . | . . . . Used . | . . . . Hacking Detections 6 | . 1 2 3 Full Trace Events 1 | . . 1 . Feedback Events . | . . . . Feedback Blocked . | . . . . Robot Schematics Acquired . | . . . . Robots Built . | . . . . Matter . | . . . . Time . | . . . . Total Robot Build Rating . | . . . . Part Schematics Acquired 1 | . . 1 . Parts Built . | . . . . Matter . | . . . . Time . | . . . . Total Part Build Rating . | . . . . Parts Repaired . | . . . . Time 32 | . . . 32 Parts Recycled . | . . . . Recycled Matter . | . . . . Retrieved Matter . | . . . . Retrieved Components . | . . . . Parts Scanalyzed 1 | . . 1 . Part Schematics Acquired 1 | . . 1 . Parts Damaged . | . . . . Bothacking | -11 -10 -9 -8 ------------ Run | Scr Mat Mat Mat Used RIF Installer . | . . . . Robots Hacked . | . . . . Non-combat . | . . . . Combat . | . . . . Robot Hacks Applied . | . . . . Relay Couplers Released . | . . . . Robots Rewired . | . . . . Allies Hacked . | . . . . Hacks Repelled . | . . . . Allies | -11 -10 -9 -8 -------- Run | Scr Mat Mat Mat Total Allies . | . . . . Largest Group . | . . . . Highest-Rated Group . | . . . . Highest-Rated Ally . | . . . . Total Orders . | . . . . Ally Attacks . | . . . . Total Damage . | . . . . Kills . | . . . . Allies Corrupted . | . . . . Allies Melted . | . . . . Intel | -11 -10 -9 -8 ------- Run | Scr Mat Mat Mat Robot Analysis Total 2 | . . 1 1 Derelict Logs Recovered . | . . . . Drone Launches . | . . . . Drone Recoveries . | . . . . Exploration | -11 -10 -9 -8 ------------- Run | Scr Mat Mat Mat Turns Passed 1346 | 53 359 260 674 Spaces Moved 976 | 42 292 218 424 Core 64 | 14 1 20 29 Treads . | . . . . Legs 567 | 28 59 107 373 Wheels . | . . . . Hover . | . . . . Flight 345 | . 232 91 22 Fastest Speed 35 | 50 37 37 35 Average Speed 90 | 96 56 80 117 Slowest Speed 250 | 120 200 120 250 Overloaded Moves . | . . . . Propulsion Burnouts . | . . . . Robots Hopped 1 | . . 1 . Cave-ins Triggered . | . . . . Exploration Rate (%) 26 | 3 42 24 37 Regions Visited 3 Branch Regions . Pre-discovered Areas . | . . . . Known Exits Taken . | . . . . Unknown Exits Taken 3 | 1 1 1 . Scrap Searched . | . . . . Spaces Dug . | . . . . Terrain Destroyed 227 | . . 69 158 Melee . | . . . . Projectile . | . . . . AOE 227 | . . 69 158 Actions | -11 -10 -9 -8 --------- Run | Scr Mat Mat Mat Total 1244 | 54 394 261 535 Wait 44 | . 9 2 33 Move 971 | 41 291 215 424 Hop 1 | . . 1 . Pick Up 43 | 7 13 7 16 Fast Attach 3 | . . 2 1 Attach 33 | 6 6 8 13 Detach . | . . . . Swap 7 | . 5 . 2 Drop 10 | . 6 4 . Fire 125 | . 61 22 42 Melee . | . . . . Ram . | . . . . Kick 7 | . 3 . 4 Crush . | . . . . Escape Stasis . | . . . . Rewire . | . . . . Trap . | . . . . Miscellaneous . | . . . . Route ------- -11/Scrapyard -10/Materials (discovered 2 exits: *Mat / [*Min]) -9/Materials -8/Materials History --------- Turn | Location | Event 6 | -11/Scrapyard | Discovered new exit (range 16) 54 | -11/Scrapyard | Entered Materials 135 | -10/Materials | Core integrity fell below 50% 215 | -10/Materials | Lost 3 parts (1n2w) 291 | -10/Materials | Discovered new exit (range 16) 380 | -10/Materials | Discovered new exit (range 9) 413 | -10/Materials | Entered another Materials area 413 | -9/Materials | Evolved 2 slots: Propulsion x1, Utility x1 505 | -9/Materials | Core integrity fell below 50% 538 | -9/Materials | Destroyed 8 combat bots 542 | -9/Materials | Lost 7 parts (1p3n1u2w) 594 | -9/Materials | Discovered new exit (range 5) 673 | -9/Materials | Entered another Materials area 673 | -8/Materials | Evolved 2 slots: Propulsion x1, Utility x1 1038 | -8/Materials | Core integrity fell below 50% 1051 | -8/Materials | Core integrity fell below 20% 1089 | -8/Materials | Lost 10 parts (1p4n1u4w) 1340 | -8/Materials | Garrison activated, responded to threat 1347 | -8/Materials | Destroyed by G-47 Trooper with Particle Gun Last Messages --------------- Retrieving latest reported positions... Found 4 active transport squads. Downloaded coordinate data. 01305_ A-02 Transporter destroyed. 01307_ Acquired 3 matter. 01309_ Acquired Hvy. Particle Cannon. 01317_ Acquired Transport Network Coupler. 01322_ Acquired 7 matter. 01325_ R-06 Scavenger collects Ion Engine. 01327_ R-06 Scavenger collects Lgt. Cannon. 01328_ Integration Channel disabled. 01331_ R-06 Scavenger collects Lgt. Cannon. 01332_ R-06 Scavenger collects Med. Storage Unit. 01336_ Lgt. Armor Plating destroyed. 01337_ Destroyed Katana. 01340_ G-47 Trooper calls for garrison reinforcements. 01340_ ALERT: Activating Garrison Access M001. [Achievement: Troublemaker] 01341_ G-47 Trooper emerges from the garrison. 01343_ G-47 Trooper destroyed. Map ----- +----------------------------------------------------+ | ????????????????????????# # # !**# | | ????????????????????????# ########+# [ !**# | | ????????????????????????# + # !* | | ?????????????????????#####+######### # # ! | | ?????????????????????# ! # # #= ! # | | ?????????????????????# #####+#####+# | | ?????????????????????# """ """ # T ## #####+# | | ?????????????????????# """ """ # """ # | | ?????????????????????# """ """ # """ + | | ?????????????????????# """ """ # """ # | | ?????????????????????# """ """ #! ###+###### | | ?????????????????????# ########## # # | | ?????????????????????#####u##### ###### # ""#?? | | ?????????????????????????#^# """ # ""#?? | | ?????????????????????????# # "Y" # T"#?? | | ?????????????????????????# # # # ""#?? | | ????????????????????????## # # # ""### | | ??????????????????????####%# # # ## | | ?????????#########????## l # # """ ##+###### | | ?????????# #????## =%+ # """ # | | ?????????# #????##u # # """ # | | ?????????#####+#########u %# """ #[ + | | ???????????# # """ # [ # ##### | | ???????????# # """ #?###### ?????# | | ???????????# """"" # #?????# ????##### | | ???????????# """"""""" @%#######?????#?????# | | ???????????# """ "" t ##?????????????????# | | ???????????# !g= #??????????????????# ! | | ???????????# * #??????????????????# | | ???????????# """ #??????????????????# | | ##?????????# """"" """ #??????????????????# ! | | # ######???# """ """ ########???????????# | | # [#???# g # #???????????# | | # ##### g # #???????????# | | # ## # # #???????????# | | # # # # "" # #???????????# | | # # G" # #???????????##### | | # [ "" # #???????????????? | | # + #???????????????? | | # # #???????????????? | | # ###### #???????????????? | | #[[[ # #????# #???????????????? | | #[[[ #????# #????????a??????? | | #[[ #????# #???????????????? | | # ! # #????# #???????????????? | | ######## ######??########???????????????? | | ?????### # #?????????????????????????? | | ?????# [ #?????????????????????????? | | ?????#!!!!!! T #?????????????????????????? | | ?????#!!!!!!# #?????????????????????????? | +----------------------------------------------------+ Best States ------------- Heat Dissipation 38 Energy Generation 14 Energy Capacity 250 Matter Stores 300 Matter Capacity 300 Sight Range 18 Terrain Scan Density 10 Armor Coverage 150 Evasion (%) 62 Targeting Accuracy 6 Item Schematics ----------------- Mni. Grenade Launcher | -9/Materials | Scanalyzed Robot Schematics ------------------ None Fabricated ------------ Nothing Alien Tech Used ----------------- None Achievements -------------- Fist Fight Power Corrupts Quick And Dirty Remodeling Storm Trooper Troublemaker Challenges ------------ None Game ------ Seed MiningTractorStreamer Manual? 0 Play Time 00:30:24 Cumulative 7.5 hours Start 2020.06.07 @ 13:50:37 End 2020.06.07 @ 14:20:51 Sessions 1 Manual Loads 0 Difficulty Rogue Special Mode None Game No. 4 Rogue 4 Adventurer 0 Explorer 0 Win Type - Total 0 Types 0/0/0/0/0/0/0 Lore% 21 Gallery% 12 Achievement% 13 Wizard Run 0 Options --------- ASCII 0 Keyboard 0 Movement Arrows Keybinds 0 Fullscreen 1 Font 18/SmallcapsGlow Map View 76x50 Tactical HUD 1 Map Filters NONE Filters NONE Steam 1 RUN: 6d079b82-fd5c-471a-a372-4c9f1878841c